[Event "3rd FIDE WCCC Blitz G12 2019"]
[Site "Minsk"]
[Date "2019.08.18"]
[Round "1.1"]
[White "Ivanytska, Liudmyla"]
[Black "Putinceva, Marina"]
[Result "1-0"]
[ECO "C49"]
[WhiteElo "1539"]
[BlackElo "1476"]
[Annotator "NA"]
[PlyCount "123"]
[EventDate "2019.08.18"]
[EventType "swiss"]
[EventCountry "BLR"]
[SourceTitle "playchess.com"]
[Source "ChessBase"]
[SourceQuality "1"]
[TimeControl "300+2"]

1. e4 {[%emt 0:00:00]} e5 {[%emt 0:00:00]} 2. Nc3 {[%emt 0:00:02]} Nf6 {[%emt 0:00:00]} 3. Nf3 {[%emt 0:00:02]} Nc6 {[%emt 0:00:01]} 4. Bb5 {[%emt 0:00:02]} Bb4 {[%emt 0:00:01]} 5. O-O {[%emt 0:00:09]} O-O {[%emt 0:00:03]} 6. d3 {[%emt 0:00:04]} Bxc3 {[%emt 0:00:02]} 7. bxc3 d6 8. h3 {[%emt 0:00:08]} h6 {[%emt 0:00:04]} 9. Be3 {[%emt 0:00:01]} a6 {[%emt 0:00:19]} 10. Bc4 {[%emt 0:00:05]} Be6 {[%emt 0:00:03]} 11. Bb3 {[%emt 0:00:04]} Bxb3 {[%emt 0:00:06]} 12. axb3 {[%emt 0:00:07]} Qd7 {[%emt 0:00:20]} 13. c4 {[%emt 0:00:01]} b6 {[%emt 0:00:08]} 14. Qd2 {[%emt 0:00:01]} a5 {[%emt 0:00:04]} 15. Nh4 {[%emt 0:00:15]} Ne7 {[%emt 0:00:37]} 16. f4 {[%emt 0:00:26]} exf4 {[%emt 0:00:32]} 17. Bxf4 {[%emt 0:00:01]} Ng6 {[%emt 0:00:15]} 18. Nf5 {[%emt 0:00:07]} Nxf4 {[%emt 0:01:18]} 19. Qxf4 {[%emt 0:00:02]} Qe6 {[%emt 0:01:23]} 20. Nxh6+ {[%emt 0:00:13]} gxh6 {[%emt 0:00:05]} 21. Qxf6 {[%emt 0:00:06]} Qxf6 {[%emt 0:00:01]} 22. Rxf6 {[%emt 0:00:01]} Kg7 {[%emt 0:00:01]} 23. Raf1 {[%emt 0:00:01]} Rae8 {[%emt 0:00:06]} 24. g4 {[%emt 0:00:10]} Re6 {[%emt 0:00:11]} 25. R6f5 {[%emt 0:00:04]} Re5 {[%emt 0:00:04]} 26. Re1 Rfe8 27. Rf4 {[%emt 0:00:16]} c6 {[%emt 0:00:01]} 28. Ref1 {[%emt 0:00:02]} R8e7 {[%emt 0:00:05]} 29. Kg2 {[%emt 0:00:06]} Rd7 {[%emt 0:00:04]} 30. d4 Re8 31. d5 {[%emt 0:00:07]} c5 {[%emt 0:00:01]} 32. Kf3 {[%emt 0:00:09]} Re5 {[%emt 0:00:02]} 33. Ke3 {[%emt 0:00:01]} Rde7 {[%emt 0:00:01]} 34. Kd3 {[%emt 0:00:01]} Kg6 {[%emt 0:00:01]} 35. Rf6+ {[%emt 0:00:02]} Kg7 {[%emt 0:00:01]} 36. R1f4 {[%emt 0:00:04]} Rd7 {[%emt 0:00:03]} 37. h4 Kh7 {[%emt 0:00:07]} 38. Rxf7+ {[%emt 0:00:07]} Rxf7 {[%emt 0:00:01]} 39. Rxf7+ {[%emt 0:00:01]} Kg6 {[%emt 0:00:00]} 40. Rd7 {[%emt 0:00:04]} Kf6 {[%emt 0:00:03]} 41. Rxd6+ {[%emt 0:00:01]} Kf7 {[%emt 0:00:01]} 42. Rxh6 {[%emt 0:00:01]} Re8 {[%emt 0:00:02]} 43. Rxb6 {[%emt 0:00:02]} Ra8 {[%emt 0:00:01]} 44. Rb5 {[%emt 0:00:02]} a4 {[%emt 0:00:01]} 45. bxa4 {[%emt 0:00:01]} Rxa4 {[%emt 0:00:01]} 46. Rxc5 {[%emt 0:00:01]} Ra3+ {[%emt 0:00:01]} 47. c3 {[%emt 0:00:00]} Ra1 {[%emt 0:00:01]} 48. e5 {[%emt 0:00:06]} Rd1+ {[%emt 0:00:01]} 49. Kc2 {[%emt 0:00:02]} Rh1 {[%emt 0:00:01]} 50. h5 {[%emt 0:00:02]} Rg1 {[%emt 0:00:01]} 51. Rc7+ {[%emt 0:00:01]} Ke8 {[%emt 0:00:02]} 52. Rg7 {[%emt 0:00:03]} Rg2+ {[%emt 0:00:02]} 53. Kb3 {[%emt 0:00:01]} Rg1 {[%emt 0:00:01]} 54. e6 {[%emt 0:00:01]} Rb1+ {[%emt 0:00:01]} 55. Kc2 {[%emt 0:00:01]} Rb6 {[%emt 0:00:01]} 56. c5 {[%emt 0:00:01]} Ra6 {[%emt 0:00:00]} 57. d6 {[%emt 0:00:02]} Kf8 {[%emt 0:00:05]} 58. h6 {[%emt 0:00:04]} Ra2+ {[%emt 0:00:02]} 59. Kd3 Ra6 60. e7+ {[%emt 0:00:03]} Ke8 {[%emt 0:00:04]} 61. Rg8+ {[%emt 0:00:01]} Kd7 {[%emt 0:00:01]} 62. e8=Q# {[%emt 0:00:03]} 1-0

[Event "3rd FIDE WCCC Blitz G12 2019"]
[Site "Minsk"]
[Date "2019.08.18"]
[Round "1.2"]
[White "Ton, Nu Quynh Duong"]
[Black "Basova, Yuliya"]
[Result "1-0"]
[ECO "D85"]
[WhiteElo "1304"]
[BlackElo "1770"]
[Annotator "NA"]
[PlyCount "106"]
[EventDate "2019.08.18"]
[EventType "swiss"]
[EventCountry "BLR"]
[SourceTitle "playchess.com"]
[Source "ChessBase"]
[SourceQuality "1"]
[TimeControl "300+2"]

1. d4 {[%emt 0:00:00]} Nf6 {[%emt 0:00:00]} 2. c4 {[%emt 0:00:00]} g6 {[%emt 0:00:01]} 3. Nc3 {[%emt 0:00:01]} d5 {[%emt 0:00:02]} 4. cxd5 Nxd5 {[%emt 0:00:01]} 5. e4 {[%emt 0:00:03]} Nxc3 {[%emt 0:00:02]} 6. bxc3 {[%emt 0:00:01]} Bg7 {[%emt 0:00:02]} 7. Nf3 {[%emt 0:00:01]} O-O {[%emt 0:00:06]} 8. Be2 {[%emt 0:00:01]} c5 {[%emt 0:00:11]} 9. Rb1 {[%emt 0:00:02]} cxd4 {[%emt 0:00:07]} 10. cxd4 {[%emt 0:00:01]} Nc6 {[%emt 0:00:10]} 11. d5 {[%emt 0:00:12]} Ne5 {[%emt 0:00:05]} 12. Nxe5 {[%emt 0:00:04]} Bxe5 {[%emt 0:00:02]} 13. O-O {[%emt 0:00:02]} Qd6 {[%emt 0:00:41]} 14. f4 {[%emt 0:00:37]} Bg7 {[%emt 0:00:25]} 15. Kh1 {[%emt 0:00:03]} Rd8 {[%emt 0:00:29]} 16. Bf3 {[%emt 0:00:44]} e6 {[%emt 0:00:21]} 17. e5 {[%emt 0:00:12]} Qc5 {[%emt 0:00:17]} 18. d6 {[%emt 0:00:30]} Rb8 {[%emt 0:00:17]} 19. Rb3 {[%emt 0:00:25]} Bd7 {[%emt 0:00:35]} 20. Be3 {[%emt 0:00:04]} Qa5 {[%emt 0:00:07]} 21. Qd3 {[%emt 0:00:17]} a6 {[%emt 0:00:07]} 22. Bb6 {[%emt 0:00:01]} Qa4 {[%emt 0:00:08]} 23. Bxd8 {[%emt 0:00:06]} Bb5 {[%emt 0:00:01]} 24. Qb1 {[%emt 0:00:19]} Bxf1 {[%emt 0:00:16]} 25. Bc7 {[%emt 0:00:03]} Rf8 {[%emt 0:00:12]} 26. Qxf1 {[%emt 0:00:13]} Qxa2 {[%emt 0:00:03]} 27. Rxb7 {[%emt 0:00:02]} a5 {[%emt 0:00:07]} 28. d7 {[%emt 0:00:02]} Qd2 {[%emt 0:00:09]} 29. Qd1 {[%emt 0:00:10]} Qxf4 {[%emt 0:00:12]} 30. d8=Q {[%emt 0:00:12]} Rxd8 {[%emt 0:00:02]} 31. Bxd8 {[%emt 0:00:00]} Bxe5 {[%emt 0:00:06]} 32. g3 {[%emt 0:00:05]} Qe3 {[%emt 0:00:15]} 33. Rb3 {[%emt 0:00:05]} Qa7 {[%emt 0:00:03]} 34. Bb6 {[%emt 0:00:03]} Qe7 {[%emt 0:00:02]} 35. Bxa5 {[%emt 0:00:04]} Qf6 {[%emt 0:00:03]} 36. Qd8+ {[%emt 0:00:04]} Kg7 {[%emt 0:00:05]} 37. Qxf6+ {[%emt 0:00:01]} Bxf6 {[%emt 0:00:01]} 38. Rb7 {[%emt 0:00:01]} e5 {[%emt 0:00:02]} 39. Bd5 {[%emt 0:00:00]} Kh6 {[%emt 0:00:02]} 40. Rxf7 {[%emt 0:00:02]} Bg5 {[%emt 0:00:02]} 41. Bb4 {[%emt 0:00:02]} Kh5 {[%emt 0:00:01]} 42. Rxh7+ {[%emt 0:00:01]} Kg4 {[%emt 0:00:01]} 43. Be6+ {[%emt 0:00:01]} Kf3 {[%emt 0:00:02]} 44. Rf7+ {[%emt 0:00:01]} Ke3 {[%emt 0:00:02]} 45. Bc5+ {[%emt 0:00:01]} Ke4 46. h4 {[%emt 0:00:03]} Be3 {[%emt 0:00:03]} 47. Bxe3 {[%emt 0:00:02]} Kxe3 {[%emt 0:00:01]} 48. Rf6 {[%emt 0:00:03]} Ke4 {[%emt 0:00:04]} 49. Rxg6 Kd4 50. h5 {[%emt 0:00:03]} e4 {[%emt 0:00:00]} 51. Bg4 {[%emt 0:00:01]} e3 {[%emt 0:00:01]} 52. h6 {[%emt 0:00:01]} Kd3 {[%emt 0:00:01]} 53. h7 {[%emt 0:00:01]} e2 {[%emt 0:00:01]} 1-0

[Event "3rd FIDE WCCC Blitz G12 2019"]
[Site "Minsk"]
[Date "2019.08.18"]
[Round "1.3"]
[White "Babic, Masa"]
[Black "Vu, My Linh"]
[Result "0-1"]
[ECO "E62"]
[WhiteElo "1719"]
[BlackElo "1467"]
[Annotator "NA"]
[PlyCount "104"]
[EventDate "2019.08.18"]
[EventType "swiss"]
[EventCountry "BLR"]
[SourceTitle "playchess.com"]
[Source "ChessBase"]
[SourceQuality "1"]
[TimeControl "300+2"]

1. Nf3 {[%emt 0:00:00]} Nf6 {[%emt 0:00:00]} 2. g3 {[%emt 0:00:00]} g6 {[%emt 0:00:00]} 3. Bg2 {[%emt 0:00:00]} Bg7 {[%emt 0:00:00]} 4. O-O {[%emt 0:00:01]} O-O {[%emt 0:00:02]} 5. d4 {[%emt 0:00:01]} d6 {[%emt 0:00:01]} 6. c4 {[%emt 0:00:01]} Nc6 {[%emt 0:00:03]} 7. Nc3 {[%emt 0:00:06]} e5 {[%emt 0:00:04]} 8. d5 {[%emt 0:00:03]} Ne7 {[%emt 0:00:01]} 9. e4 {[%emt 0:00:14]} Nd7 {[%emt 0:00:07]} 10. b3 {[%emt 0:00:36]} h6 {[%emt 0:00:14]} 11. Bb2 {[%emt 0:00:02]} f5 {[%emt 0:00:02]} 12. Qc2 {[%emt 0:00:14]} Nc5 {[%emt 0:00:07]} 13. Nd2 {[%emt 0:00:21]} g5 {[%emt 0:00:20]} 14. b4 {[%emt 0:00:43]} Na6 {[%emt 0:00:29]} 15. a3 {[%emt 0:00:11]} f4 {[%emt 0:00:09]} 16. Ne2 {[%emt 0:01:18]} Bg4 {[%emt 0:00:08]} 17. f3 {[%emt 0:00:06]} Bd7 {[%emt 0:00:07]} 18. g4 {[%emt 0:00:19]} h5 {[%emt 0:00:10]} 19. h3 {[%emt 0:00:05]} Rf6 {[%emt 0:00:24]} 20. c5 {[%emt 0:00:23]} Bb5 {[%emt 0:00:13]} 21. Rfe1 {[%emt 0:00:05]} hxg4 {[%emt 0:00:08]} 22. hxg4 {[%emt 0:00:03]} Rh6 {[%emt 0:00:11]} 23. Nc3 {[%emt 0:00:18]} Bd7 {[%emt 0:00:11]} 24. c6 {[%emt 0:00:03]} bxc6 {[%emt 0:00:11]} 25. dxc6 {[%emt 0:00:01]} Nxc6 {[%emt 0:00:02]} 26. Nd5 {[%emt 0:00:12]} Ne7 {[%emt 0:00:21]} 27. Qc4 {[%emt 0:00:05]} Be6 {[%emt 0:00:03]} 28. Nxe7+ {[%emt 0:00:02]} Qxe7 {[%emt 0:00:01]} 29. Qxa6 {[%emt 0:00:02]} Kf7 {[%emt 0:00:14]} 30. Kf2 {[%emt 0:00:05]} c5 {[%emt 0:00:38]} 31. Rh1 {[%emt 0:00:03]} Rah8 {[%emt 0:00:06]} 32. Rxh6 {[%emt 0:00:02]} Rxh6 {[%emt 0:00:01]} 33. b5 {[%emt 0:00:05]} c4 {[%emt 0:00:09]} 34. Bc3 {[%emt 0:00:03]} Qc7 {[%emt 0:00:04]} 35. Qc6 {[%emt 0:00:02]} Qb6+ {[%emt 0:00:23]} 36. Qxb6 {[%emt 0:00:02]} axb6 {[%emt 0:00:01]} 37. a4 {[%emt 0:00:03]} Rh8 {[%emt 0:00:02]} 38. a5 {[%emt 0:00:01]} bxa5 {[%emt 0:00:03]} 39. Rxa5 {[%emt 0:00:01]} Rb8 {[%emt 0:00:05]} 40. Bb4 {[%emt 0:00:03]} Bf8 {[%emt 0:00:03]} 41. Ra7+ {[%emt 0:00:05]} Kf6 {[%emt 0:00:03]} 42. Ra5 {[%emt 0:00:03]} Be7 {[%emt 0:00:02]} 43. Bf1 {[%emt 0:00:02]} Bd8 {[%emt 0:00:05]} 44. Ra7 {[%emt 0:00:01]} Bb6+ {[%emt 0:00:01]} 45. Ke1 {[%emt 0:00:05]} Bxa7 {[%emt 0:00:00]} 46. Nxc4 {[%emt 0:00:03]} Rxb5 {[%emt 0:00:03]} 47. Bxd6 {[%emt 0:00:02]} Rb1+ {[%emt 0:00:03]} 48. Kd2 {[%emt 0:00:02]} Rxf1 {[%emt 0:00:01]} 49. Bxe5+ Ke7 {[%emt 0:00:03]} 50. Bd6+ {[%emt 0:00:03]} Kd7 {[%emt 0:00:01]} 51. e5 {[%emt 0:00:01]} Rxf3 {[%emt 0:00:03]} 52. Nb2 {[%emt 0:00:02]} Rf2+ {[%emt 0:00:01]} 0-1

[Event "3rd FIDE WCCC Blitz G12 2019"]
[Site "Minsk"]
[Date "2019.08.18"]
[Round "1.4"]
[White "Shikhalieva, Ariana"]
[Black "Babic, Milana"]
[Result "0-1"]
[ECO "A45"]
[WhiteElo "1381"]
[BlackElo "1689"]
[Annotator "NA"]
[PlyCount "69"]
[EventDate "2019.08.18"]
[EventType "swiss"]
[EventCountry "BLR"]
[SourceTitle "playchess.com"]
[Source "ChessBase"]
[SourceQuality "1"]
[TimeControl "300+2"]

1. d4 {[%emt 0:00:00]} Nf6 {[%emt 0:00:00]} 2. Bf4 {[%emt 0:00:00]} d6 {[%emt 0:00:00]} 3. e3 {[%emt 0:00:02]} g6 {[%emt 0:00:00]} 4. Nf3 {[%emt 0:00:02]} Bg7 {[%emt 0:00:01]} 5. c3 {[%emt 0:00:04]} O-O {[%emt 0:00:01]} 6. Bd3 {[%emt 0:00:03]} Nbd7 {[%emt 0:00:01]} 7. Nbd2 {[%emt 0:00:02]} b6 {[%emt 0:00:01]} 8. O-O {[%emt 0:00:03]} c5 {[%emt 0:00:01]} 9. Bg3 {[%emt 0:00:13]} Bb7 {[%emt 0:00:02]} 10. Re1 {[%emt 0:00:06]} Re8 {[%emt 0:00:05]} 11. Bb5 {[%emt 0:00:10]} Ne4 {[%emt 0:00:10]} 12. Nxe4 {[%emt 0:00:18]} Bxe4 {[%emt 0:00:01]} 13. dxc5 {[%emt 0:00:23]} bxc5 {[%emt 0:00:08]} 14. Nd2 {[%emt 0:00:21]} Bb7 {[%emt 0:00:04]} 15. Nb3 {[%emt 0:00:03]} Rc8 {[%emt 0:00:36]} 16. Qd2 {[%emt 0:00:47]} a6 {[%emt 0:00:05]} 17. Bxd7 {[%emt 0:00:14]} Qxd7 {[%emt 0:00:01]} 18. Rad1 {[%emt 0:00:03]} Qc6 {[%emt 0:00:07]} 19. f3 {[%emt 0:00:15]} Red8 {[%emt 0:00:14]} 20. Qf2 {[%emt 0:00:11]} Qb6 21. e4 {[%emt 0:00:50]} e6 {[%emt 0:00:13]} 22. Re2 {[%emt 0:00:30]} Bc6 {[%emt 0:00:24]} 23. Rxd6 {[%emt 0:00:40]} Rxd6 {[%emt 0:00:15]} 24. Bxd6 {[%emt 0:00:01]} Bb5 25. Rd2 {[%emt 0:00:04]} Bh6 {[%emt 0:00:16]} 26. Rd1 {[%emt 0:00:05]} Rd8 {[%emt 0:00:14]} 27. Qe1 {[%emt 0:00:10]} Rxd6 {[%emt 0:00:03]} 28. Rxd6 {[%emt 0:00:02]} Qxd6 {[%emt 0:00:01]} 29. h3 {[%emt 0:00:04]} Qb6 {[%emt 0:00:01]} 30. Kh1 {[%emt 0:00:01]} Bc4 {[%emt 0:00:02]} 31. Qd1 {[%emt 0:00:04]} Bxb3 32. axb3 {[%emt 0:00:01]} Bg7 {[%emt 0:00:11]} 33. Qc2 {[%emt 0:00:03]} a5 {[%emt 0:00:07]} 34. Qd1 {[%emt 0:00:04]} Be5 {[%emt 0:00:09]} 35. Kg1 {[%emt 0:00:03]} 0-1

[Event "3rd FIDE WCCC Blitz G12 2019"]
[Site "Minsk"]
[Date "2019.08.18"]
[Round "1.5"]
[White "Lomakina, Anzhelika"]
[Black "Darmaeva, Nomina"]
[Result "0-1"]
[ECO "B07"]
[WhiteElo "1732"]
[BlackElo "1389"]
[Annotator "NA"]
[PlyCount "99"]
[EventDate "2019.08.18"]
[EventType "swiss"]
[EventCountry "BLR"]
[SourceTitle "playchess.com"]
[Source "ChessBase"]
[SourceQuality "1"]
[TimeControl "300+2"]

1. e4 {[%emt 0:00:00]} d6 2. d4 {[%emt 0:00:00]} Nf6 {[%emt 0:00:00]} 3. Nc3 {[%emt 0:00:01]} Nbd7 {[%emt 0:00:00]} 4. Nf3 e5 5. Bc4 {[%emt 0:00:31]} Be7 {[%emt 0:00:01]} 6. O-O {[%emt 0:00:46]} O-O {[%emt 0:00:01]} 7. dxe5 {[%emt 0:01:04]} dxe5 {[%emt 0:00:02]} 8. Bg5 {[%emt 0:00:24]} c6 {[%emt 0:00:01]} 9. Qe2 {[%emt 0:00:19]} Qc7 {[%emt 0:00:07]} 10. h3 {[%emt 0:00:19]} b5 {[%emt 0:00:03]} 11. Bb3 {[%emt 0:00:14]} Nc5 {[%emt 0:00:06]} 12. Qe3 {[%emt 0:00:40]} Nxb3 {[%emt 0:00:40]} 13. axb3 {[%emt 0:00:00]} Be6 {[%emt 0:00:05]} 14. Rfd1 {[%emt 0:00:10]} a5 {[%emt 0:00:04]} 15. Bh4 {[%emt 0:00:12]} h6 {[%emt 0:00:04]} 16. Bg3 {[%emt 0:00:09]} Nd7 {[%emt 0:00:05]} 17. Rd3 {[%emt 0:00:38]} f6 {[%emt 0:00:26]} 18. Rdd1 {[%emt 0:00:04]} Bc5 {[%emt 0:00:04]} 19. Qe2 {[%emt 0:00:01]} Qb6 {[%emt 0:00:04]} 20. Nh4 {[%emt 0:00:02]} Kh7 {[%emt 0:00:11]} 21. Nf5 {[%emt 0:00:00]} Bxf5 {[%emt 0:00:17]} 22. exf5 {[%emt 0:00:01]} Rad8 {[%emt 0:00:06]} 23. Ne4 {[%emt 0:00:01]} Be7 {[%emt 0:00:02]} 24. Qg4 {[%emt 0:00:01]} Nc5 {[%emt 0:00:21]} 25. Qg6+ {[%emt 0:00:07]} Kh8 {[%emt 0:00:00]} 26. Nc3 {[%emt 0:00:02]} Qc7 {[%emt 0:00:25]} 27. Kh2 {[%emt 0:00:02]} Bd6 {[%emt 0:00:06]} 28. Re1 {[%emt 0:00:02]} Rfe8 {[%emt 0:00:06]} 29. Rad1 {[%emt 0:00:01]} Nd7 {[%emt 0:00:05]} 30. Ne4 {[%emt 0:00:02]} Be7 {[%emt 0:00:08]} 31. c4 {[%emt 0:00:03]} Bb4 {[%emt 0:00:03]} 32. Re2 {[%emt 0:00:02]} Nf8 {[%emt 0:00:06]} 33. Rxd8 {[%emt 0:00:03]} Rxd8 {[%emt 0:00:01]} 34. Qg4 {[%emt 0:00:03]} Qd7 {[%emt 0:00:06]} 35. Bh4 {[%emt 0:00:02]} Be7 {[%emt 0:00:06]} 36. Rd2 {[%emt 0:00:01]} Qe8 {[%emt 0:00:04]} 37. Qd1 {[%emt 0:00:01]} Nh7 {[%emt 0:00:30]} 38. c5 {[%emt 0:00:03]} Ng5 {[%emt 0:00:02]} 39. Bxg5 fxg5 {[%emt 0:00:17]} 40. Rxd8 {[%emt 0:00:03]} Qxd8 {[%emt 0:00:20]} 41. Qxd8+ {[%emt 0:00:01]} Bxd8 {[%emt 0:00:01]} 42. Nd6 {[%emt 0:00:02]} Be7 {[%emt 0:00:04]} 43. Nb7 {[%emt 0:00:02]} a4 {[%emt 0:00:03]} 44. b4 {[%emt 0:00:02]} Kg8 {[%emt 0:00:07]} 45. Na5 {[%emt 0:00:00]} Bf6 {[%emt 0:00:13]} 46. f3 {[%emt 0:00:06]} e4 {[%emt 0:00:01]} 47. fxe4 {[%emt 0:00:03]} Bxb2 {[%emt 0:00:01]} 48. Nxc6 {[%emt 0:00:02]} a3 {[%emt 0:00:01]} 49. e5 {[%emt 0:00:03]} Bxe5+ {[%emt 0:00:03] Ne7+ Kf7+ Nd5 a2+} 50. Kg1 0-1

[Event "3rd FIDE WCCC Blitz G12 2019"]
[Site "Minsk"]
[Date "2019.08.18"]
[Round "1.6"]
[White "Kulkova, Dina"]
[Black "Kirdyashkina, Ekaterina"]
[Result "1-0"]
[ECO "A20"]
[WhiteElo "1476"]
[BlackElo "1691"]
[Annotator "NA"]
[PlyCount "137"]
[EventDate "2019.08.18"]
[EventType "swiss"]
[EventCountry "BLR"]
[SourceTitle "playchess.com"]
[Source "ChessBase"]
[SourceQuality "1"]
[TimeControl "300+2"]

1. c4 {[%emt 0:00:00]} e5 {[%emt 0:00:00]} 2. g3 {[%emt 0:00:01]} Nc6 {[%emt 0:00:01]} 3. Bg2 {[%emt 0:00:02]} Nf6 {[%emt 0:00:08]} 4. Nc3 {[%emt 0:00:02]} g6 {[%emt 0:00:01]} 5. e3 {[%emt 0:00:04]} Bg7 {[%emt 0:00:01]} 6. Nge2 {[%emt 0:00:02]} O-O {[%emt 0:00:03]} 7. O-O {[%emt 0:00:03]} d6 {[%emt 0:00:07]} 8. a3 {[%emt 0:00:05]} Be6 {[%emt 0:00:23]} 9. d3 {[%emt 0:00:03]} Qc8 {[%emt 0:00:15]} 10. b3 {[%emt 0:00:12]} Bh3 {[%emt 0:00:04]} 11. Bb2 {[%emt 0:00:02]} Bxg2 {[%emt 0:00:12]} 12. Kxg2 {[%emt 0:00:02]} Qe6 {[%emt 0:00:29]} 13. h3 {[%emt 0:00:13]} Rad8 {[%emt 0:00:05]} 14. Qd2 {[%emt 0:00:11]} d5 {[%emt 0:00:10]} 15. Qc2 {[%emt 0:00:17]} d4 {[%emt 0:00:16]} 16. exd4 {[%emt 0:00:41]} exd4 {[%emt 0:00:01]} 17. Nb5 {[%emt 0:00:36]} Ne8 {[%emt 0:00:45]} 18. Rfe1 {[%emt 0:00:44]} Qd7 {[%emt 0:00:04]} 19. a4 {[%emt 0:00:37]} a6 {[%emt 0:00:00]} 20. Na3 {[%emt 0:00:04]} Qf5 {[%emt 0:00:16]} 21. Rad1 {[%emt 0:00:39]} Nf6 {[%emt 0:00:16]} 22. Qd2 {[%emt 0:00:13]} Rfe8 {[%emt 0:00:53]} 23. Nc2 {[%emt 0:00:03]} Qh5 {[%emt 0:00:32]} 24. Nf4 {[%emt 0:00:24]} Qc5 {[%emt 0:00:03]} 25. Rxe8+ {[%emt 0:00:03]} Rxe8 {[%emt 0:00:02]} 26. Re1 {[%emt 0:00:01]} Rxe1 {[%emt 0:00:03]} 27. Qxe1 {[%emt 0:00:01]} Qd6 {[%emt 0:00:06]} 28. Qd2 {[%emt 0:00:03]} Nd7 {[%emt 0:00:05]} 29. Ba3 {[%emt 0:00:01]} Qf6 {[%emt 0:00:04]} 30. Nd5 {[%emt 0:00:02]} Qd8 {[%emt 0:00:02]} 31. Qe2 {[%emt 0:00:03]} h6 {[%emt 0:00:22]} 32. Qf3 {[%emt 0:00:08]} Nce5 {[%emt 0:00:03]} 33. Qe2 {[%emt 0:00:02]} Nc6 {[%emt 0:00:02]} 34. f4 {[%emt 0:00:03]} Kh7 {[%emt 0:00:02]} 35. Qf3 {[%emt 0:00:06]} Nf6 {[%emt 0:00:02]} 36. Nxf6+ {[%emt 0:00:02]} Qxf6 {[%emt 0:00:01]} 37. Qe4 {[%emt 0:00:02]} Qe6 {[%emt 0:00:02]} 38. Qxe6 {[%emt 0:00:02]} fxe6 {[%emt 0:00:01]} 39. Kf3 {[%emt 0:00:04]} Kg8 {[%emt 0:00:01]} 40. Bb2 {[%emt 0:00:02]} Kf7 {[%emt 0:00:01]} 41. Ke4 {[%emt 0:00:01]} e5 {[%emt 0:00:04]} 42. fxe5 {[%emt 0:00:02]} Bxe5 {[%emt 0:00:01]} 43. g4 {[%emt 0:00:01]} Ke6 {[%emt 0:00:04]} 44. Bxd4 {[%emt 0:00:02]} Nxd4 {[%emt 0:00:05]} 45. Nxd4+ {[%emt 0:00:01]} Bxd4 {[%emt 0:00:02]} 46. Kxd4 {[%emt 0:00:01]} a5 {[%emt 0:00:02]} 47. Ke4 {[%emt 0:00:02]} g5 {[%emt 0:00:02]} 48. d4 {[%emt 0:00:02]} b6 {[%emt 0:00:03]} 49. d5+ {[%emt 0:00:04]} Kd7 {[%emt 0:00:03]} 50. Kf5 {[%emt 0:00:01]} Kd6 {[%emt 0:00:01]} 51. Kg6 {[%emt 0:00:01]} Kc5 {[%emt 0:00:01]} 52. Kxh6 {[%emt 0:00:01]} Kb4 {[%emt 0:00:01]} 53. Kxg5 {[%emt 0:00:01]} Kxb3 {[%emt 0:00:02]} 54. h4 {[%emt 0:00:01]} Kxa4 {[%emt 0:00:01]} 55. h5 {[%emt 0:00:01]} Kb3 {[%emt 0:00:01]} 56. h6 {[%emt 0:00:01]} a4 {[%emt 0:00:01]} 57. h7 {[%emt 0:00:01]} a3 {[%emt 0:00:01]} 58. h8=Q {[%emt 0:00:02]} Kxc4 {[%emt 0:00:02]} 59. Qa1 {[%emt 0:00:09]} Kb3 {[%emt 0:00:02]} 60. Kf5 {[%emt 0:00:03]} b5 {[%emt 0:00:00]} 61. g5 {[%emt 0:00:01]} b4 {[%emt 0:00:01]} 62. Qb1+ {[%emt 0:00:01]} Ka4 {[%emt 0:00:03]} 63. g6 {[%emt 0:00:02]} b3 {[%emt 0:00:00]} 64. g7 {[%emt 0:00:02]} b2 {[%emt 0:00:02]} 65. Qe4+ {[%emt 0:00:02]} Kb3 {[%emt 0:00:01]} 66. Qd3+ {[%emt 0:00:02]} Kb4 {[%emt 0:00:03]} 67. Qb1 {[%emt 0:00:05]} Kb3 {[%emt 0:00:01]} 68. g8=Q {[%emt 0:00:05]} a2 {[%emt 0:00:02]} 69. d6+ {[%emt 0:00:01]} 1-0

[Event "3rd FIDE WCCC Blitz G12 2019"]
[Site "Minsk"]
[Date "2019.08.18"]
[Round "2.1"]
[White "Misiuk, Monika"]
[Black "Ivanytska, Liudmyla"]
[Result "1/2-1/2"]
[ECO "D35"]
[WhiteElo "1339"]
[BlackElo "1539"]
[Annotator "NA"]
[PlyCount "63"]
[EventDate "2019.08.18"]
[EventType "swiss"]
[EventCountry "BLR"]
[SourceTitle "playchess.com"]
[Source "ChessBase"]
[SourceQuality "1"]
[TimeControl "300+2"]

1. d4 {[%emt 0:00:00]} d5 {[%emt 0:00:00]} 2. c4 {[%emt 0:00:00]} e6 {[%emt 0:00:00]} 3. Nc3 {[%emt 0:00:02]} Nf6 {[%emt 0:00:01]} 4. cxd5 {[%emt 0:00:01]} exd5 {[%emt 0:00:01]} 5. Bg5 {[%emt 0:00:01]} c6 {[%emt 0:00:02]} 6. e3 {[%emt 0:00:02]} Be7 {[%emt 0:00:01]} 7. Bd3 {[%emt 0:00:01]} O-O {[%emt 0:00:02]} 8. Qc2 {[%emt 0:00:01]} h6 {[%emt 0:00:01]} 9. Bh4 {[%emt 0:00:02]} Be6 {[%emt 0:00:03]} 10. Nf3 {[%emt 0:00:04]} Nbd7 {[%emt 0:00:01]} 11. O-O {[%emt 0:00:04]} b6 {[%emt 0:00:02]} 12. b3 {[%emt 0:00:14]} c5 {[%emt 0:00:03]} 13. dxc5 {[%emt 0:00:15]} bxc5 {[%emt 0:00:02]} 14. Rfd1 {[%emt 0:00:04]} Qb6 {[%emt 0:00:21]} 15. Rac1 {[%emt 0:00:17]} Rac8 {[%emt 0:00:01]} 16. Qe2 {[%emt 0:00:07]} c4 {[%emt 0:00:31]} 17. Bc2 {[%emt 0:00:16]} Ba3 {[%emt 0:00:10]} 18. Rb1 {[%emt 0:00:06]} Qb4 {[%emt 0:00:17]} 19. Na4 {[%emt 0:00:20]} Ne4 {[%emt 0:02:39]} 20. bxc4 {[%emt 0:00:27]} Qxc4 {[%emt 0:00:03]} 21. Qxc4 {[%emt 0:00:16]} Rxc4 {[%emt 0:00:01]} 22. Bb3 {[%emt 0:00:05]} Rxa4 {[%emt 0:00:32]} 23. Bxa4 {[%emt 0:00:14]} Nc3 {[%emt 0:00:06]} 24. Rb3 {[%emt 0:00:18]} Nxd1 {[%emt 0:00:13]} 25. Rxa3 {[%emt 0:00:03]} Nb6 {[%emt 0:00:06]} 26. Bxd1 {[%emt 0:00:06]} Rc8 {[%emt 0:00:06]} 27. h3 {[%emt 0:00:33]} Rc1 {[%emt 0:00:01]} 28. Rd3 {[%emt 0:00:07]} Bf5 {[%emt 0:00:01]} 29. Rd2 {[%emt 0:00:02]} Be4 {[%emt 0:00:03]} 30. Kf1 {[%emt 0:00:17]} Nc4 {[%emt 0:00:02]} 31. Rd4 {[%emt 0:00:03]} g5 {[%emt 0:00:16]} 32. Bg3 {[%emt 0:00:02]} 1/2-1/2